bitfinex/quotes_SOLUSD_20250108
["timestamp","ask_amount","ask_price","bid_price","bid_amount"]
[1736356259140,14.1384,193.5,193.38,42.47907956]
[1736356259460,14.1384,193.5,193.38,0.77523542]
[1736356259766,19.3063,193.5,193.39,0.77523017]
[1736356260341,5.1679,193.5,193.36,23.776884]
[1736356260660,7.5196,193.56,193.36,23.776884]
[1736356260661,2.5833,193.55,193.38,23.776884]
[1736356260964,2.5833,193.55,193.39,0.77511811]
[1736356261192,20.0,193.53,193.39,42.47896225]
[1736356261466,2.5833,193.55,193.39,0.77511811]
[1736356261653,7.7499,193.55,193.39,0.77511811]
[1736356261860,7.7499,193.55,193.4,0.77511929]
[1736356262367,2.5829,193.59,193.45,41.70384414]
[1736356262545,2.5829,193.59,193.46,0.77487532]
[1736356262741,20.0,193.57,193.42,0.77491041]
[1736356263042,20.0,193.56,193.35,42.47893329]
[1736356263464,23.776884,193.51,193.33,0.77528919]
[1736356263761,20.0,193.47,193.3,12.352]
[1736356263961,20.0,193.47,193.28,0.77545608]
[1736356264344,20.0,193.43,193.25,42.47944929]
[1736356264566,2.585,193.42,193.25,0.77560515]
[1736356265152,2.585,193.42,193.23,0.77580846]
[1736356265663,2.5855,193.38,193.23,0.77580846]
[1736356266652,20.0,193.35,193.19,46.6]
[1736356266971,20.0,193.31,193.19,46.6]
[1736356267157,20.0,193.31,193.11,8.74425533]
[1736356267343,20.0,193.31,193.11,7.96804519]
[1736356267548,11.5544,193.35,193.12,0.77629327]
[1736356267744,7.7583,193.34,193.15,41.70384414]
[1736356268055,20.0,193.31,193.16,0.77611733]
[1736356268254,20.0,193.31,193.1,42.48002469]
[1736356268863,20.0,193.31,193.14,41.70384414]
[1736356269060,20.0,193.31,193.14,0.77614232]
[1736356269389,20.0,193.27,193.09,0.77616124]
[1736356269672,20.0,193.27,193.03,12.9511]
[1736356269673,22.5877,193.22,193.04,42.48025194]
[1736356269868,22.5877,193.22,193.04,0.7764078]
[1736356270082,22.5877,193.22,193.02,42.48033078]
[1736356270253,22.5877,193.22,193.03,41.70384414]
[1736356270573,22.5877,193.22,193.07,41.70384414]
[1736356270790,2.5877,193.22,193.11,41.70384414]
[1736356271081,20.0,193.3,193.09,41.70384414]
[1736356271266,20.0,193.3,193.1,42.48020288]
[1736356271579,20.0,193.3,193.13,41.70384414]
[1736356271780,2.5867,193.29,193.14,41.70384414]
[1736356272075,2.5867,193.29,193.12,41.70384414]
[1736356272287,2.5867,193.29,193.12,42.47998798]
[1736356272448,2.5867,193.29,193.12,0.77614384]
[1736356272853,23.776884,193.28,193.08,41.70384414]
[1736356273076,20.0,193.25,193.05,41.70384414]
[1736356273254,20.0,193.25,193.06,42.48032222]
[1736356273454,20.0,193.21,193.02,0.77650729]
[1736356273649,20.0,193.21,193.03,41.70384414]
[1736356273884,2.5879,193.2,193.03,41.70384414]
[1736356274253,2.5879,193.2,193.04,41.70384414]
[1736356274463,2.5879,193.2,193.03,41.70384414]
[1736356274675,19.3182,193.2,193.02,0.77658398]
[1736356274884,19.3182,193.2,193.03,41.70384414]
[1736356275178,19.3182,193.2,193.05,41.70384414]
[1736356275376,19.3182,193.2,193.0,41.70384414]
[1736356275377,20.0,193.17,192.94,20.32234519]
[1736356275558,20.0,193.17,192.96,41.70384414]
[1736356275760,20.0,193.13,192.97,0.77684013]
[1736356275974,20.0,193.13,192.94,41.70384414]
[1736356276283,20.0,193.09,192.93,7.96804519]
[1736356276670,20.0,193.07,192.87,11.63804519]
[1736356276979,22.4169,193.06,192.87,11.63804519]
[1736356277162,23.776884,193.05,192.87,11.63804519]
[1736356277361,20.0,193.03,192.87,11.63804519]
[1736356277764,20.0,192.99,192.87,11.63804519]
[1736356278081,20.0,192.95,192.87,1.2531]
[1736356278295,11.5544,192.98,192.8,7.96804519]
[1736356278296,20.0,192.91,192.8,7.96804519]
[1736356278780,23.776884,192.9,192.8,7.96804519]
[1736356278954,23.776884,192.86,192.76,31.87218077]
[1736356279155,20.0,192.79,192.63,20.0]
[1736356279564,23.776884,192.78,192.64,41.70384414]
[1736356279769,7.7784,192.84,192.64,41.70384414]
[1736356279957,20.0,192.81,192.64,41.70384414]
[1736356280485,20.0,192.81,192.65,41.70384414]
[1736356280784,20.0,192.81,192.64,0.77805315]
[1736356280992,20.0,192.81,192.64,41.70384414]
[1736356281297,9.186288,192.83,192.72,41.70384414]
[1736356281468,2.5922,192.88,192.74,41.70384414]
[1736356281663,9.186288,192.87,192.73,0.77790708]
[1736356281861,2.5925,192.86,192.71,41.70384414]
[1736356282171,2.5925,192.86,192.72,41.70384414]
[1736356282477,2.5925,192.86,192.69,41.70384414]
[1736356282676,2.5925,192.86,192.66,20.77792547]
[1736356282677,20.0,192.84,192.68,41.70384414]
[1736356282882,20.0,192.84,192.69,0.77802505]
[1736356283058,2.5925,192.86,192.71,41.70384414]
[1736356283264,2.5925,192.86,192.7,41.70384414]
[1736356283484,20.0,192.84,192.69,42.48186919]
[1736356283697,2.5925,192.86,192.7,23.776884]
[1736356283996,20.0,192.84,192.71,42.48180484]
[1736356284167,20.0,192.84,192.68,42.4818445]
[1736356284673,20.0,192.84,192.69,41.70384414]
[1736356284987,20.0,192.83,192.64,0.77808396]
[1736356285280,2.5925,192.86,192.67,41.70384414]
[1736356285481,20.0,192.84,192.68,41.70384414]
[1736356285794,2.5925,192.86,192.71,41.70384414]
[1736356285961,2.5925,192.86,192.72,65.48072814]
[1736356286159,9.186288,192.87,192.72,65.48072814]
[1736356286888,9.186288,192.87,192.73,42.48168041]
[1736356287185,9.186288,192.87,192.73,23.776884]
[1736356287492,9.186288,192.87,192.72,23.776884]
[1736356287669,20.0,192.84,192.65,41.70384414]
[1736356287987,20.0,192.8,192.63,20.0]
[1736356288808,22.148388,192.87,192.68,41.70384414]
[1736356288965,22.148388,192.87,192.65,41.70384414]
[1736356289287,20.0,192.84,192.65,41.70384414]
[1736356289585,20.0,192.84,192.64,0.77826017]
[1736356289586,2.5929,192.83,192.66,41.70384414]
[1736356289789,2.5929,192.83,192.69,23.776884]
[1736356290089,16.963488,192.87,192.69,23.776884]
[1736356290283,16.963488,192.87,192.67,41.70384414]
[1736356290284,20.0,192.84,192.64,42.48191602]
[1736356290491,20.0,192.84,192.68,41.70384414]
[1736356290704,16.963488,192.87,192.71,41.70384414]
[1736356290871,11.778688,192.87,192.69,42.48187182]
[1736356291074,11.778688,192.87,192.69,0.77802768]
[1736356291287,11.778688,192.87,192.69,42.48187182]
[1736356291493,11.778688,192.87,192.72,23.776884]
[1736356291670,11.778688,192.87,192.73,23.776884]
[1736356291985,11.778688,192.87,192.74,65.48072814]
[1736356292173,2.5924,192.87,192.76,23.776884]
[1736356292576,2.5924,192.87,192.69,44.92954414]
[1736356292906,20.0,192.86,192.7,65.48072814]
[1736356293474,20.0,192.86,192.69,45.70756872]
[1736356293708,20.0,192.84,192.69,0.77802458]
[1736356294004,20.0,192.84,192.7,23.776884]
[1736356294507,23.776884,192.84,192.63,61.70384414]
[1736356294675,20.0,192.81,192.63,20.0]
[1736356295483,20.0,192.82,192.64,23.776884]
[1736356295701,20.0,192.82,192.68,41.70384414]
[1736356295702,2.5932,192.81,192.68,41.70384414]
[1736356295878,5.0,192.95,192.71,65.48072814]
[1736356296075,2.5926,192.86,192.73,23.776884]
[1736356296303,22.5926,192.86,192.73,23.776884]
[1736356296491,2.5926,192.86,192.73,65.48072814]
[1736356296893,19.3305,192.9,192.77,23.776884]
[1736356297215,20.0,192.87,192.72,41.70384414]
[1736356297501,20.0,192.87,192.73,41.70384414]
[1736356297686,22.5924,192.87,192.74,23.776884]
[1736356298082,22.5924,192.87,192.71,41.70384414]
[1736356298276,27.7772,192.87,192.7,41.70384414]
[1736356298500,27.7772,192.87,192.67,41.70384414]
[1736356298810,27.7772,192.87,192.66,41.70384414]
[1736356299014,23.776884,192.86,192.63,20.0]
[1736356299178,20.0,192.81,192.63,20.0]
[1736356299812,5.1863,192.82,192.64,65.48072814]
[1736356300015,5.1863,192.82,192.65,42.48207427]
[1736356300320,20.0,192.79,192.64,41.70384414]
[1736356300478,20.0,192.79,192.63,62.48219733]
[1736356300684,20.0,192.79,192.63,20.77835319]
[1736356300884,20.0,192.79,192.63,62.48219733]
[1736356301079,20.0,192.79,192.64,23.776884]
[1736356301389,20.0,192.79,192.64,0.77830459]
[1736356301390,2.5936,192.78,192.64,0.77830459]
[1736356301597,2.5936,192.78,192.64,24.55518859]
[1736356301794,2.5936,192.78,192.64,0.77830459]
[1736356301982,20.0,192.75,192.63,20.0]
[1736356302412,11.5544,192.74,192.63,20.0]
[1736356302616,20.0,192.71,192.63,20.0]
[1736356303123,20.0,192.67,192.49,0.77870568]
[1736356303299,2.5952,192.66,192.48,62.66491521]
[1736356303631,2.5952,192.66,192.48,104.36875935]
[1736356303797,2.5952,192.66,192.53,41.70384414]
[1736356303997,2.5937,192.77,192.55,41.70384414]
[1736356304199,11.5544,192.76,192.57,23.776884]
[1736356304521,11.5544,192.76,192.59,23.776884]
[1736356304712,11.5544,192.76,192.62,23.776884]
[1736356304904,11.5544,192.76,192.62,24.55523063]
[1736356305106,20.0,192.73,192.62,24.55523063]
[1736356305326,2.5944,192.72,192.57,0.7783494]
[1736356305502,2.5944,192.72,192.57,42.48219354]
[1736356305699,11.5544,192.76,192.6,23.776884]
[1736356305901,11.5544,192.76,192.61,0.77829311]
[1736356306223,11.5544,192.76,192.62,23.776884]
[1736356306720,2.594,192.75,192.6,23.776884]
[1736356306925,2.594,192.75,192.62,23.776884]
[1736356307623,20.0,192.72,192.57,42.48223639]
[1736356307822,20.0,192.72,192.54,42.48237581]
[1736356308000,20.0,192.72,192.57,23.776884]
[1736356308202,20.0,192.72,192.57,66.25925659]
[1736356308404,20.0,192.72,192.48,110.16431521]
[1736356308620,20.0,192.72,192.52,41.70384414]
[1736356308823,20.0,192.72,192.53,41.70384414]
[1736356309015,20.0,192.72,192.54,0.77866897]
[1736356309200,20.0,192.72,192.54,42.48251311]
[1736356309405,2.5945,192.71,192.55,41.70384414]
[1736356309601,2.5945,192.71,192.57,23.776884]
[1736356309815,20.0,192.68,192.52,42.48243533]
[1736356310019,20.0,192.68,192.49,0.77872176]
[1736356310214,20.0,192.64,192.48,62.66491521]
[1736356311253,20.0,192.62,192.48,62.66491521]
[1736356311544,23.776884,192.56,192.43,2.55]
[1736356311703,5.0,192.57,192.43,2.55]
[1736356311904,5.0,192.6,192.43,2.55]
[1736356312108,5.0,192.59,192.43,2.55]
[1736356312302,20.0,192.56,192.43,2.55]
[1736356312515,20.0,192.52,192.43,2.55]
[1736356313151,11.5544,192.64,192.45,23.776884]
[1736356313320,11.5544,192.64,192.46,42.482887]
[1736356313523,11.5544,192.64,192.43,2.55]
[1736356313524,20.0,192.59,192.43,2.55]
[1736356313915,2.5959,192.61,192.43,2.55]
[1736356314118,2.5959,192.61,192.43,44.25384414]
[1736356314315,5.0,192.55,192.43,0.0001]
[1736356314641,12.7884,192.59,192.43,0.0001]
[1736356314956,20.0,192.56,192.43,0.0001]
[1736356315758,3.8941,192.59,192.43,0.0001]
[1736356315919,1.298,192.59,192.44,65.48072814]
[1736356316321,20.0,192.57,192.43,0.0001]
[1736356316750,1.2982,192.56,192.43,0.0001]
[1736356317060,1.2982,192.56,192.43,23.776984]
[1736356317222,1.2982,192.56,192.43,0.0001]
[1736356317598,1.2982,192.56,192.43,23.776984]
[1736356317898,1.2976,192.65,192.47,23.776884]
[1736356318059,21.2976,192.65,192.44,41.70384414]
[1736356318265,21.2976,192.65,192.45,23.776884]
[1736356318488,3.8929,192.65,192.47,23.776884]
[1736356318792,20.0,192.61,192.43,0.0001]
[1736356319188,20.0,192.61,192.43,23.776984]
[1736356319493,20.0,192.63,192.44,42.48296931]
[1736356319693,20.0,192.63,192.47,23.776884]
[1736356319983,20.0,192.63,192.45,23.776884]
[1736356320187,20.0,192.63,192.47,23.776884]
[1736356320765,1.2978,192.62,192.47,23.776884]
[1736356320999,1.2978,192.62,192.44,41.70384414]
[1736356321168,3.8935,192.62,192.44,41.70384414]
[1736356321363,3.8935,192.62,192.43,0.0001]
[1736356321584,6.4892,192.62,192.43,41.70394414]
[1736356321869,6.4892,192.62,192.48,23.776884]
[1736356321870,1.2978,192.62,192.48,23.776884]
[1736356322290,1.2978,192.62,192.44,4.15528502]
[1736356322291,1.2978,192.62,192.46,41.70384414]
[1736356322802,1.2978,192.62,192.52,23.776884]
[1736356323005,3.8928,192.66,192.53,65.48072814]
[1736356323171,1.2976,192.66,192.55,23.776884]
[1736356323508,1.2976,192.66,192.54,41.70384414]
[1736356323808,1.2976,192.66,192.56,23.776884]
[1736356323963,1.2973,192.7,192.58,23.776884]
[1736356324167,11.5544,192.75,192.59,23.776884]
[1736356324368,1.2971,192.74,192.61,23.776884]
[1736356324668,1.2968,192.78,192.64,23.776884]
[1736356324867,1.2968,192.78,192.64,65.48072814]
[1736356325072,1.2968,192.78,192.66,23.776884]
[1736356325397,1.2968,192.78,192.66,65.48072814]
[1736356325717,5.1863,192.81,192.7,41.70384414]
[1736356325880,1.2963,192.86,192.71,23.776884]
[1736356326081,1.2963,192.86,192.75,41.70384414]
[1736356326303,11.5544,192.89,192.79,23.776884]
[1736356326488,11.5544,192.89,192.76,23.776884]
[1736356326489,11.5544,192.89,192.76,0.77768665]
[1736356326680,11.5544,192.89,192.75,41.70384414]
[1736356326880,12.8505,192.89,192.73,41.70384414]
[1736356327495,12.8505,192.89,192.71,41.70384414]
[1736356327675,12.8505,192.89,192.72,41.70384414]
[1736356327997,20.0,192.86,192.73,41.70384414]
[1736356328173,12.8505,192.89,192.75,41.70384414]
[1736356328378,12.8505,192.89,192.74,41.70384414]
[1736356328601,12.8505,192.89,192.75,23.776884]
[1736356328795,20.0,192.86,192.71,41.70384414]
[1736356329192,23.776884,192.85,192.63,41.70384414]
[1736356329502,20.0,192.82,192.6,3.2479]
[1736356329706,20.0,192.82,192.61,41.70384414]
[1736356330077,20.0,192.82,192.6,44.95174414]
[1736356330278,23.776884,192.81,192.6,44.95174414]
[1736356330476,23.46539029,192.85,192.62,41.70384414]
[1736356330681,3.8892,192.84,192.65,41.70384414]
[1736356330908,3.8892,192.84,192.63,41.70384414]
[1736356331116,20.0,192.79,192.6,3.2479]
[1736356331281,20.0,192.77,192.56,41.70384414]
[1736356331491,20.0,192.77,192.57,41.70384414]
[1736356331682,20.0,192.77,192.58,42.4823477]
[1736356331884,20.0,192.77,192.58,0.77850356]
[1736356332079,20.0,192.77,192.61,41.70384414]
[1736356332302,20.0,192.77,192.58,42.4823477]
[1736356332504,20.0,192.77,192.54,15.7172]
[1736356332505,20.0,192.73,192.54,15.7172]
[1736356332714,1.2972,192.72,192.54,3.5293]
[1736356333105,3.8916,192.72,192.56,41.70384414]
[1736356333298,1.2964,192.83,192.64,41.70384414]
[1736356333624,21.2964,192.83,192.63,41.70384414]
[1736356333925,21.2964,192.83,192.64,41.70384414]
[1736356334120,21.2964,192.83,192.59,0.77830859]
[1736356334121,1.2964,192.83,192.63,41.70384414]
[1736356334334,3.8893,192.83,192.59,41.70384414]
[1736356334621,20.0,192.79,192.59,41.70384414]
[1736356334934,1.2968,192.78,192.62,41.70384414]
[1736356335113,1.2968,192.78,192.62,23.776884]
[1736356335316,1.2968,192.78,192.59,41.70384414]
[1736356335532,1.2968,192.78,192.6,65.48072814]
[1736356335753,3.8904,192.78,192.6,65.48072814]
[1736356336022,3.8904,192.78,192.54,45.23314414]
[1736356336023,20.0,192.75,192.54,45.23314414]
[1736356336409,20.0,192.75,192.56,65.48072814]
[1736356336609,20.0,192.75,192.54,3.5293]
[1736356336807,20.0,192.71,192.54,45.23314414]
[1736356337026,20.0,192.71,192.55,41.70384414]
[1736356337221,43.776884,192.77,192.55,41.70384414]
[1736356337443,6.484,192.78,192.59,65.48072814]
[1736356337735,20.0,192.75,192.59,65.48072814]
[1736356338046,3.8911,192.74,192.56,41.70384414]
[1736356338341,3.8911,192.74,192.59,23.776884]
[1736356338629,3.8911,192.74,192.6,23.776884]
[1736356339126,3.8911,192.74,192.59,23.776884]
[1736356339324,20.0,192.71,192.53,41.70384414]
[1736356339514,20.0,192.71,192.5,41.70384414]
[1736356339714,20.0,192.71,192.52,41.70384414]
[1736356339915,20.0,192.71,192.54,41.70384414]
[1736356340117,20.0,192.71,192.53,41.70384414]
[1736356340621,20.0,192.67,192.47,46.78]
[1736356340821,20.0,192.67,192.52,41.70384414]
[1736356341025,20.0,192.67,192.51,41.70384414]
[1736356341208,20.0,192.67,192.52,41.70384414]
[1736356341523,1.2976,192.66,192.54,65.48072814]
[1736356341705,1.2976,192.66,192.57,23.776884]
[1736356341912,1.2976,192.66,192.53,41.70384414]
[1736356342106,1.2976,192.66,192.56,23.776884]
[1736356342306,1.2974,192.7,192.59,41.70384414]
[1736356342520,1.2974,192.7,192.6,23.776884]
[1736356342726,11.5544,192.77,192.62,23.776884]
[1736356342901,1.2971,192.74,192.62,23.776884]
[1736356343302,1.2971,192.74,192.64,65.48072814]
[1736356343608,1.2964,192.84,192.66,23.776884]
[1736356343913,3.8892,192.84,192.59,41.70384414]
[1736356344112,20.0,192.81,192.61,23.776884]
[1736356344297,10.0,192.8,192.55,41.70384414]
[1736356344498,20.0,192.76,192.54,41.70384414]
[1736356344823,20.0,192.76,192.55,41.70384414]
[1736356345015,20.0,192.76,192.56,41.70384414]
[1736356345210,20.0,192.76,192.57,23.776884]
[1736356345423,23.891,192.75,192.57,23.776884]
[1736356345623,3.891,192.75,192.56,23.776884]
[1736356345920,3.891,192.75,192.59,41.70384414]
[1736356346121,3.891,192.75,192.6,23.776884]
[1736356346322,3.891,192.75,192.57,41.70384414]
[1736356346524,3.891,192.75,192.59,41.70384414]
[1736356346730,3.891,192.75,192.6,23.776884]
[1736356347222,20.0,192.72,192.6,23.776884]
[1736356347430,20.0,192.72,192.59,23.776884]
[1736356347727,20.0,192.72,192.57,41.70384414]
[1736356347929,20.0,192.72,192.59,23.776884]
[1736356348120,20.0,192.72,192.55,41.70384414]
[1736356348318,20.0,192.72,192.57,41.70384414]
[1736356348518,20.0,192.72,192.58,23.776884]
[1736356349131,1.2972,192.71,192.59,23.776884]
[1736356349629,3.8917,192.71,192.55,41.70384414]
[1736356350108,3.8917,192.71,192.57,41.70384414]
[1736356350313,3.8917,192.71,192.58,23.776884]
[1736356351015,3.8917,192.71,192.55,41.70384414]
[1736356351346,3.8917,192.71,192.56,41.70384414]
[1736356351515,3.8917,192.71,192.52,0.7785248]
[1736356351516,1.2972,192.71,192.58,65.48072814]
[1736356351708,1.2972,192.71,192.57,31.97854663]
[1736356351709,1.2972,192.71,192.6,65.48072814]
[1736356351931,1.2972,192.71,192.6,23.776884]
[1736356352121,1.2972,192.71,192.61,23.776884]
[1736356352517,2.594,192.75,192.59,41.70384414]
[1736356352721,2.594,192.75,192.6,65.48072814]
[1736356352920,2.594,192.75,192.6,23.776884]
[1736356353334,2.594,192.75,192.6,65.48072814]
[1736356353844,1.2967,192.79,192.62,65.48072814]
[1736356354050,1.2967,192.79,192.69,23.776884]
[1736356354334,1.2965,192.82,192.72,23.776884]
[1736356354726,1.2965,192.82,192.71,41.70384414]
[1736356355036,1.2965,192.82,192.72,23.776884]
[1736356355245,21.2963,192.86,192.72,23.776884]
[1736356355454,21.2963,192.86,192.72,65.48072814]
[1736356355667,1.2963,192.86,192.73,65.48072814]
[1736356355954,11.5544,192.89,192.76,23.776884]
[1736356356135,11.5544,192.89,192.72,41.70384414]
[1736356356350,11.5544,192.89,192.7,44.1734]
[1736356356351,11.5544,192.89,192.73,41.70384414]
[1736356356557,11.5544,192.89,192.78,41.70384414]
[1736356356853,11.5544,192.89,192.76,72.90384414]
[1736356357035,11.5544,192.89,192.77,23.776884]
[1736356357247,2.5909,192.98,192.79,23.776884]
[1736356357455,14.1453,192.98,192.79,23.776884]
[1736356357630,1.2955,192.97,192.81,23.776884]
[1736356357953,3.8865,192.97,192.77,42.48134547]
[1736356358338,3.8865,192.97,192.78,23.776884]
[1736356358743,3.8865,192.97,192.79,0.77761782]
[1736356358944,3.8865,192.97,192.78,23.776884]
[1736356359332,23.8871,192.94,192.62,3.4506]
[1736356359647,20.0,192.91,192.64,41.70384414]
[1736356359829,20.0,192.91,192.67,41.70384414]
[1736356360161,20.0,192.91,192.65,41.70384414]
[1736356360341,20.0,192.91,192.67,41.70384414]
[1736356360543,20.0,192.91,192.68,0.77800479]
[1736356360758,20.0,192.91,192.66,61.70384414]
[1736356360955,20.0,192.82,192.63,43.4311786]
[1736356361158,20.0,192.82,192.64,41.70384414]
[1736356361343,20.0,192.82,192.66,23.776884]
[1736356361737,20.0,192.82,192.65,0.77809972]
[1736356361936,20.0,192.82,192.64,42.48197695]
[1736356362150,20.0,192.82,192.63,0.94926617]
[1736356362363,1.2966,192.81,192.62,45.93261877]
[1736356362668,3.8898,192.81,192.56,42.48207673]
[1736356362969,20.0,192.77,192.54,46.76]
[1736356363142,43.776884,192.76,192.54,46.76]
[1736356363341,20.0,192.76,192.54,46.76]
[1736356363956,2.7391051,192.8,192.55,0.77860312]
[1736356364157,1.2967,192.79,192.54,88.46384414]
[1736356364334,20.0,192.76,192.54,46.76]
[1736356364661,20.0,192.75,192.54,46.76]
[1736356364840,20.0,192.75,192.55,23.776884]
[1736356365238,20.0,192.77,192.55,23.776884]
[1736356365442,20.0,192.76,192.54,46.76]
[1736356365645,20.0,192.75,192.55,23.776884]
[1736356365860,6.4835,192.79,192.55,23.776884]
[1736356366041,20.0,192.76,192.55,23.776884]
[1736356366245,21.297,192.75,192.54,46.76]
[1736356366573,20.0,192.7,192.49,0.77863001]
[1736356366733,20.0,192.7,192.5,41.70384414]
[1736356366938,20.0,192.7,192.49,42.48247415]
[1736356367134,40.0,192.7,192.5,41.70384414]
[1736356367538,1.2974,192.69,192.5,42.48259191]
[1736356368066,1.2974,192.69,192.5,0.77874777]
[1736356368442,20.0,192.65,192.43,12.9911]
[1736356368639,20.0,192.65,192.47,41.70384414]
[1736356368835,1.2974,192.69,192.45,41.70384414]
[1736356369036,20.0,192.67,192.44,0.77896968]
[1736356369238,20.0,192.59,192.43,0.0001]
[1736356369438,1.2981,192.58,192.43,0.0001]
[1736356369642,1.6248,192.58,192.43,0.0001]
[1736356370063,21.6248,192.58,192.43,0.0001]
[1736356370366,20.0,192.54,192.43,0.0001]
[1736356370557,19.31495781,192.54,192.43,0.0001]
[1736356370767,11.5544,192.52,192.3,50.0]
[1736356370944,5.0,192.48,192.3,50.0]
[1736356371145,13.65085032,192.52,192.3,50.0]
[1736356371146,5.0,192.45,192.3,50.0]
[1736356371347,5.0,192.43,192.3,50.0]
[1736356371572,3.8976,192.42,192.3,37.4167181]
[1736356371752,5.0,192.37,192.3,14.34541]
[1736356371939,5.0,192.35,192.3,14.34541]
[1736356372142,5.0,192.35,192.27,0.09833961]
[1736356372356,5.0,192.32,192.25,10.0]
[1736356372555,5.0,192.32,192.25,5.90675827]
[1736356372556,20.0,192.32,192.25,5.90675827]
[1736356372759,31.5544,192.32,192.25,5.90675827]
[1736356372951,31.90222732,192.32,192.25,3.85183985]
[1736356373147,20.0,192.28,192.14,20.0]
[1736356373357,5.34782732,192.31,192.14,20.0]
[1736356373358,20.0,192.24,192.14,20.0]
[1736356373564,0.34782732,192.31,192.14,20.0]
[1736356373774,7.09645032,192.28,192.01,10.0]
[1736356374063,0.3267,192.3,192.05,41.70384414]
[1736356374554,20.0,192.28,192.01,5.0]
[1736356374884,11.5544,192.27,192.01,5.0]
[1736356375087,12.37252644,192.27,192.06,5.0]
[1736356375367,12.37252644,192.27,192.02,0.78058416]
[1736356375368,11.5544,192.27,192.1,20.0]
[1736356375573,1.3003,192.26,192.1,20.0]
[1736356375874,11.5544,192.35,192.15,41.70384414]
[1736356376177,0.3267,192.4,192.19,41.70384414]
[1736356376341,11.5544,192.44,192.21,41.70384414]
[1736356376545,11.5544,192.44,192.24,23.776884]
[1736356376763,11.5544,192.44,192.2,5.0]
[1736356376764,14.01456292,192.44,192.25,41.70384414]
[1736356376951,11.5544,192.44,192.27,41.70384414]
[1736356377272,14.19189527,192.52,192.3,23.776884]
[1736356377458,7.92395307,192.51,192.31,41.70384414]
[1736356377845,7.92395307,192.51,192.29,0.77970337]
[1736356378051,12.92395307,192.51,192.3,41.70384414]
[1736356378350,7.92395307,192.51,192.34,41.70384414]
[1736356378765,14.19189527,192.52,192.36,41.70384414]
[1736356378960,20.0,192.49,192.37,23.776884]
[1736356379149,14.19189527,192.52,192.37,23.776884]
[1736356379348,14.19189527,192.52,192.39,23.776884]
[1736356379750,14.19189527,192.52,192.36,41.70384414]
[1736356380045,14.19189527,192.52,192.39,23.776884]
[1736356380649,14.19189527,192.52,192.41,23.776884]
[1736356381279,14.19189527,192.52,192.33,0.77933624]
[1736356381280,20.0,192.49,192.34,41.70384414]
[1736356381440,20.0,192.49,192.36,41.70384414]
[1736356381644,20.0,192.49,192.37,23.776884]
[1736356381860,20.0,192.49,192.34,41.70384414]
[1736356382075,20.0,192.49,192.36,41.70384414]
[1736356382265,20.0,192.49,192.34,41.70384414]
[1736356382585,20.0,192.49,192.37,23.776884]
[1736356382746,20.0,192.49,192.34,41.70384414]
[1736356383146,20.0,192.49,192.35,23.776884]
[1736356383349,20.0,192.49,192.24,5.77962819]
[1736356383557,20.0,192.49,192.3,41.70384414]
[1736356383966,20.0,192.49,192.32,41.70384414]
[1736356384472,20.0,192.49,192.33,23.776884]
[1736356384855,20.0,192.49,192.24,0.77962819]
[1736356384856,20.0,192.49,192.28,41.70384414]
[1736356385054,20.0,192.49,192.24,0.77962819]
[1736356385055,20.0,192.49,192.35,23.776884]
[1736356385272,1.27308734,192.51,192.35,65.48072814]
[1736356385455,14.19189527,192.52,192.37,23.776884]
[1736356385663,14.19189527,192.52,192.36,41.70384414]
[1736356385859,14.19189527,192.52,192.35,41.70384414]
[1736356386072,20.0,192.49,192.36,23.776884]
[1736356386274,20.0,192.49,192.34,41.70384414]